[Event "Titled Tuesday Blitz October 11 Early 2022"]
[White "Storey, Charles H"]
[Black "Gubajdullin, Alexei"]
[WhiteFideId "406686"]
[BlackFideId "4141202"]
[WhiteElo "2252"]
[BlackElo "2200"]
[Result "0-1"]
[Round "03"]
[TimeControl "180+1"]
[Date "2022.10.12"]
[WhiteClock "0:00:01"]
[BlackClock "0:00:10"]

1. e4 {[%clk 0:03:00]}  g6 {[%clk 0:02:58]} 2. d4 {[%clk 0:03:00]}  Bg7 {[%clk 0:02:54]} 3. Nf3 {[%clk 0:03:00]}  d6 {[%clk 0:02:39]} 4. Nc3 {[%clk 0:02:57]}  Nf6 {[%clk 0:02:39]} 5. h3 {[%clk 0:02:52]}  O-O {[%clk 0:02:40]} 6. Bg5 {[%clk 0:02:51]}  Nc6 {[%clk 0:02:39]} 7. Qd2 {[%clk 0:02:50]}  a6 {[%clk 0:02:07]} 8. g4 {[%clk 0:02:38]}  b5 {[%clk 0:02:06]} 9. Bd3 {[%clk 0:02:36]}  Bb7 {[%clk 0:02:05]} 10. a3 {[%clk 0:02:33]}  Na5 {[%clk 0:02:04]} 11. Bh6 {[%clk 0:02:23]}  Nc4 {[%clk 0:02:02]} 12. Bxc4 {[%clk 0:02:23]}  bxc4 {[%clk 0:02:01]} 13. Bxg7 {[%clk 0:02:23]}  Kxg7 {[%clk 0:02:01]} 14. Qe3 {[%clk 0:02:10]}  e5 {[%clk 0:01:54]} 15. dxe5 {[%clk 0:02:08]}  dxe5 {[%clk 0:01:54]} 16. g5 {[%clk 0:02:01]}  Nh5 {[%clk 0:01:50]} 17. Nxe5 {[%clk 0:01:59]}  Re8 {[%clk 0:01:48]} 18. f4 {[%clk 0:01:58]}  Qe7 {[%clk 0:01:37]} 19. O-O {[%clk 0:01:50]}  Rad8 {[%clk 0:01:29]} 20. Rae1 {[%clk 0:01:30]}  f6 {[%clk 0:01:25]} 21. Nxc4 {[%clk 0:01:23]}  fxg5 {[%clk 0:01:23]} 22. fxg5 {[%clk 0:01:23]}  Qe6 {[%clk 0:01:12]} 23. Nd2 {[%clk 0:01:00]}  Bc8 {[%clk 0:01:11]} 24. Kg2 {[%clk 0:00:48]}  Qxh3+ {[%clk 0:01:01]} 25. Qxh3 {[%clk 0:00:48]}  Bxh3+ {[%clk 0:01:02]} 26. Kxh3 {[%clk 0:00:46]}  Rxd2 {[%clk 0:01:02]} 27. Rd1 {[%clk 0:00:36]}  Red8 {[%clk 0:00:46]} 28. Rxd2 {[%clk 0:00:35]}  Rxd2 {[%clk 0:00:45]} 29. Rd1 {[%clk 0:00:34]}  Rxc2 {[%clk 0:00:44]} 30. Rd7+ {[%clk 0:00:34]}  Kf8 {[%clk 0:00:44]} 31. Rxc7 {[%clk 0:00:26]}  Rxb2 {[%clk 0:00:43]} 32. Nd5 {[%clk 0:00:20]}  Re2 {[%clk 0:00:36]} 33. Rc4 {[%clk 0:00:16]}  Ke8 {[%clk 0:00:28]} 34. Kg4 {[%clk 0:00:16]}  Kd7 {[%clk 0:00:27]} 35. Kf3 {[%clk 0:00:16]}  Re1 {[%clk 0:00:26]} 36. Kf2 {[%clk 0:00:15]}  Ra1 {[%clk 0:00:25]} 37. Rc7+ {[%clk 0:00:12]}  Kd6 {[%clk 0:00:25]} 38. Rxh7 {[%clk 0:00:13]}  Rxa3 {[%clk 0:00:23]} 39. Rh6 {[%clk 0:00:13]}  Ke5 {[%clk 0:00:23]} 40. Rxg6 {[%clk 0:00:10]}  Kxe4 {[%clk 0:00:23]} 41. Nf6+ {[%clk 0:00:10]}  Kf5 {[%clk 0:00:23]} 42. Rh6 {[%clk 0:00:08]}  Nf4 {[%clk 0:00:22]} 43. Nd7 {[%clk 0:00:05]}  Kxg5 {[%clk 0:00:22]} 44. Rc6 {[%clk 0:00:04]}  Kg4 {[%clk 0:00:22]} 45. Ne5+ {[%clk 0:00:04]}  Kf5 {[%clk 0:00:22]} 46. Nc4 {[%clk 0:00:05]}  Ra2+ {[%clk 0:00:21]} 47. Ke3 {[%clk 0:00:05]}  Ne6 {[%clk 0:00:19]} 48. Kd3 {[%clk 0:00:02]}  a5 {[%clk 0:00:18]} 49. Kc3 {[%clk 0:00:02]}  a4 {[%clk 0:00:18]} 50. Kb4 {[%clk 0:00:02]}  Nf4 {[%clk 0:00:17]} 51. Ne3+ {[%clk 0:00:02]}  Ke4 {[%clk 0:00:17]} 52. Nc4 {[%clk 0:00:02]}  Nd5+ {[%clk 0:00:17]} 53. Kc5 {[%clk 0:00:02]}  Nf4 {[%clk 0:00:16]} 54. Rh6 {[%clk 0:00:02]}  a3 {[%clk 0:00:15]} 55. Kb4 {[%clk 0:00:02]}  Nd3+ {[%clk 0:00:14]} 56. Kb3 {[%clk 0:00:02]}  Ra1 {[%clk 0:00:13]} 57. Nxa3 {[%clk 0:00:02]}  Nc5+ {[%clk 0:00:13]} 58. Kc4 {[%clk 0:00:01]}  Ne6 {[%clk 0:00:13]} 59. Nb5 {[%clk 0:00:01]}  Nf4 {[%clk 0:00:12]} 60. Rh4 {[%clk 0:00:01]}  Rc1+ {[%clk 0:00:12]} 61. Nc3+ {[%clk 0:00:02]}  Kf5 {[%clk 0:00:12]} 62. Kd4 {[%clk 0:00:01]}  Ng6 {[%clk 0:00:10]} 0-1


[Site "https://www.chess.com"]

[Event "Titled Tuesday Blitz October 11 Early 2022"]
[White "Tang, Andrew"]
[Black "Shuvalova, Polina"]
[WhiteFideId "2059630"]
[BlackFideId "24171760"]
[WhiteElo "2581"]
[BlackElo "2392"]
[Result "0-1"]
[Round "03"]
[TimeControl "180+1"]
[Date "2022.10.12"]
[WhiteClock "0:00:02"]
[BlackClock "0:00:04"]

1. d4 {[%clk 0:03:00]}  Nf6 {[%clk 0:02:59]} 2. c4 {[%clk 0:03:00]}  e6 {[%clk 0:02:59]} 3. Nc3 {[%clk 0:03:00]}  Bb4 {[%clk 0:02:59]} 4. Qc2 {[%clk 0:03:00]}  d6 {[%clk 0:02:50]} 5. Nf3 {[%clk 0:03:00]}  Nbd7 {[%clk 0:02:49]} 6. g3 {[%clk 0:02:57]}  b6 {[%clk 0:02:48]} 7. Bg2 {[%clk 0:02:57]}  Bb7 {[%clk 0:02:47]} 8. O-O {[%clk 0:02:58]}  O-O {[%clk 0:02:47]} 9. Rd1 {[%clk 0:02:52]}  Bxc3 {[%clk 0:02:43]} 10. Qxc3 {[%clk 0:02:52]}  Be4 {[%clk 0:02:42]} 11. b4 {[%clk 0:02:51]}  a5 {[%clk 0:02:41]} 12. b5 {[%clk 0:02:51]}  Qc8 {[%clk 0:02:38]} 13. a4 {[%clk 0:02:50]}  Qb7 {[%clk 0:02:37]} 14. Ba3 {[%clk 0:02:51]}  e5 {[%clk 0:02:13]} 15. dxe5 {[%clk 0:02:11]}  Nxe5 {[%clk 0:02:10]} 16. c5 {[%clk 0:02:10]}  bxc5 {[%clk 0:02:02]} 17. Bxc5 {[%clk 0:02:09]}  Rfe8 {[%clk 0:01:39]} 18. Bd4 {[%clk 0:02:06]}  Nd5 {[%clk 0:01:35]} 19. Qb2 {[%clk 0:02:05]}  Nb4 {[%clk 0:01:26]} 20. Bxe5 {[%clk 0:02:02]}  dxe5 {[%clk 0:01:24]} 21. Rac1 {[%clk 0:02:02]}  c6 {[%clk 0:01:19]} 22. Nxe5 {[%clk 0:00:49]}  Bxg2 {[%clk 0:01:16]} 23. Rd7 {[%clk 0:00:49]}  Qc8 {[%clk 0:00:59]} 24. b6 {[%clk 0:00:44]}  Rb8 {[%clk 0:00:51]} 25. Rc7 {[%clk 0:00:43]}  Qe6 {[%clk 0:00:42]} 26. Nxf7 {[%clk 0:00:42]}  Bd5 {[%clk 0:00:35]} 27. Nh6+ {[%clk 0:00:41]}  Qxh6 {[%clk 0:00:35]} 28. b7 {[%clk 0:00:22]}  c5 {[%clk 0:00:35]} 29. R1xc5 {[%clk 0:00:20]}  Bxb7 {[%clk 0:00:34]} 30. h4 {[%clk 0:00:21]}  Rbc8 {[%clk 0:00:31]} 31. Rh5 {[%clk 0:00:19]}  Rxc7 {[%clk 0:00:27]} 32. Rxh6 {[%clk 0:00:18]}  gxh6 {[%clk 0:00:28]} 33. f3 {[%clk 0:00:18]}  Rce7 {[%clk 0:00:25]} 34. e4 {[%clk 0:00:17]}  Rf7 {[%clk 0:00:25]} 35. Kg2 {[%clk 0:00:16]}  Ref8 {[%clk 0:00:25]} 36. Qb3 {[%clk 0:00:16]}  Kg7 {[%clk 0:00:21]} 37. Qc3+ {[%clk 0:00:16]}  Kg8 {[%clk 0:00:22]} 38. Qc4 {[%clk 0:00:16]}  Nc6 {[%clk 0:00:21]} 39. Qd5 {[%clk 0:00:16]}  Nb4 {[%clk 0:00:19]} 40. Qe6 {[%clk 0:00:15]}  Kg7 {[%clk 0:00:17]} 41. Qe5+ {[%clk 0:00:15]}  Rf6 {[%clk 0:00:14]} 42. g4 {[%clk 0:00:15]}  Nd3 {[%clk 0:00:14]} 43. Qc3 {[%clk 0:00:12]}  Nf4+ {[%clk 0:00:14]} 44. Kh2 {[%clk 0:00:11]}  Kg8 {[%clk 0:00:15]} 45. Qxa5 {[%clk 0:00:07]}  Ne6 {[%clk 0:00:14]} 46. Qb5 {[%clk 0:00:06]}  Bc8 {[%clk 0:00:12]} 47. a5 {[%clk 0:00:04]}  Rxf3 {[%clk 0:00:13]} 48. a6 {[%clk 0:00:04]}  Rf2+ {[%clk 0:00:13]} 49. Kg1 {[%clk 0:00:05]}  Rf1+ {[%clk 0:00:13]} 50. Kg2 {[%clk 0:00:05]}  R8f2+ {[%clk 0:00:13]} 51. Kg3 {[%clk 0:00:05]}  Rf3+ {[%clk 0:00:14]} 52. Kh2 {[%clk 0:00:02]}  R1f2+ {[%clk 0:00:09]} 53. Kg1 {[%clk 0:00:03]}  Rf4 {[%clk 0:00:06]} 54. a7 {[%clk 0:00:03]}  Rf1+ {[%clk 0:00:06]} 55. Kg2 {[%clk 0:00:03]}  R1f2+ {[%clk 0:00:06]} 56. Kg1 {[%clk 0:00:03]}  Rf1+ {[%clk 0:00:07]} 57. Kh2 {[%clk 0:00:04]}  R4f2+ {[%clk 0:00:07]} 58. Kg3 {[%clk 0:00:04]}  Rf3+ {[%clk 0:00:08]} 59. Kh2 {[%clk 0:00:04]}  R3f2+ {[%clk 0:00:06]} 60. Kg3 {[%clk 0:00:03]}  Rf3+ {[%clk 0:00:07]} 61. Kh2 {[%clk 0:00:03]}  Ra1 {[%clk 0:00:06]} 62. Qc6 {[%clk 0:00:02]}  Rxa7 {[%clk 0:00:05]} 63. Qxc8+ {[%clk 0:00:02]}  Nf8 {[%clk 0:00:06]} 64. Qc4+ {[%clk 0:00:03]}  Raf7 {[%clk 0:00:06]} 65. e5 {[%clk 0:00:03]}  Rf2+ {[%clk 0:00:06]} 66. Kg3 {[%clk 0:00:03]}  Rf3+ {[%clk 0:00:07]} 67. Kg2 {[%clk 0:00:02]}  Rf2+ {[%clk 0:00:08]} 68. Kg3 {[%clk 0:00:03]}  Rf3+ {[%clk 0:00:08]} 69. Kg2 {[%clk 0:00:03]}  Re3 {[%clk 0:00:09]} 70. Qd5 {[%clk 0:00:03]}  Re2+ {[%clk 0:00:09]} 71. Kg3 {[%clk 0:00:03]}  Re3+ {[%clk 0:00:09]} 72. Kg2 {[%clk 0:00:04]}  Kg7 {[%clk 0:00:10]} 73. Qd4 {[%clk 0:00:03]}  Re2+ {[%clk 0:00:10]} 74. Kg1 {[%clk 0:00:04]}  Ne6 {[%clk 0:00:10]} 75. Qd6 {[%clk 0:00:04]}  Re1+ {[%clk 0:00:09]} 76. Kh2 {[%clk 0:00:04]}  Re2+ {[%clk 0:00:08]} 77. Kg3 {[%clk 0:00:04]}  Nf4 {[%clk 0:00:08]} 78. g5 {[%clk 0:00:04]}  hxg5 {[%clk 0:00:07]} 79. hxg5 {[%clk 0:00:04]}  Rg2+ {[%clk 0:00:08]} 80. Kh4 {[%clk 0:00:04]}  Ng6+ {[%clk 0:00:07]} 81. Kh5 {[%clk 0:00:05]}  Rh2+ {[%clk 0:00:06]} 82. Kg4 {[%clk 0:00:05]}  Rh4+ {[%clk 0:00:06]} 83. Kg3 {[%clk 0:00:05]}  Rhf4 {[%clk 0:00:06]} 84. e6 {[%clk 0:00:05]}  Re7 {[%clk 0:00:05]} 85. Qd5 {[%clk 0:00:05]}  Rf8 {[%clk 0:00:05]} 86. Qd4+ {[%clk 0:00:05]}  Kg8 {[%clk 0:00:05]} 87. Qd5 {[%clk 0:00:05]}  Rfe8 {[%clk 0:00:05]} 88. Kg4 {[%clk 0:00:05]}  Rxe6 {[%clk 0:00:06]} 89. Kh5 {[%clk 0:00:05]}  Kg7 {[%clk 0:00:07]} 90. Qd4+ {[%clk 0:00:05]}  Re5 {[%clk 0:00:07]} 91. Qc4 {[%clk 0:00:05]}  R8e7 {[%clk 0:00:08]} 92. Qb4 {[%clk 0:00:05]}  Re4 {[%clk 0:00:08]} 93. Qc3+ {[%clk 0:00:05]}  Kg8 {[%clk 0:00:08]} 94. Qg7+ {[%clk 0:00:03]}  Rxg7 {[%clk 0:00:06]} 95. Kh6 {[%clk 0:00:02]}  Rh4# {[%clk 0:00:04]} 0-1


[Site "https://www.chess.com"]

[Event "Titled Tuesday Blitz October 11 Early 2022"]
[White "Tania, Sachdev"]
[Black "Lauridsen, Jesper Morch"]
[WhiteFideId "5007844"]
[BlackFideId "1401890"]
[WhiteElo "2306"]
[BlackElo "2173"]
[Result "1-0"]
[Round "03"]
[TimeControl "180+1"]
[Date "2022.10.12"]
[WhiteClock "0:01:07"]
[BlackClock "0:00:04"]

1. d4 {[%clk 0:03:00]}  d5 {[%clk 0:02:58]} 2. c4 {[%clk 0:03:01]}  e6 {[%clk 0:02:58]} 3. Nf3 {[%clk 0:03:01]}  c5 {[%clk 0:02:59]} 4. cxd5 {[%clk 0:03:00]}  exd5 {[%clk 0:02:58]} 5. Nc3 {[%clk 0:03:00]}  Nc6 {[%clk 0:02:57]} 6. g3 {[%clk 0:02:51]}  Nf6 {[%clk 0:02:55]} 7. Bg2 {[%clk 0:02:51]}  cxd4 {[%clk 0:02:55]} 8. Nxd4 {[%clk 0:02:50]}  Bc5 {[%clk 0:02:50]} 9. Nb3 {[%clk 0:02:42]}  Bb6 {[%clk 0:02:49]} 10. O-O {[%clk 0:02:42]}  d4 {[%clk 0:02:47]} 11. Nb5 {[%clk 0:02:40]}  O-O {[%clk 0:02:31]} 12. Bxc6 {[%clk 0:02:30]}  bxc6 {[%clk 0:02:30]} 13. N5xd4 {[%clk 0:02:31]}  Re8 {[%clk 0:02:10]} 14. Nxc6 {[%clk 0:02:23]}  Qxd1 {[%clk 0:02:04]} 15. Rxd1 {[%clk 0:02:24]}  Rxe2 {[%clk 0:01:45]} 16. Nbd4 {[%clk 0:02:23]}  Re8 {[%clk 0:01:36]} 17. Bg5 {[%clk 0:02:08]}  Ne4 {[%clk 0:01:31]} 18. Be3 {[%clk 0:02:01]}  Bg4 {[%clk 0:01:26]} 19. Rdc1 {[%clk 0:01:53]}  h6 {[%clk 0:01:17]} 20. Nb5 {[%clk 0:01:43]}  Rac8 {[%clk 0:00:51]} 21. Bxb6 {[%clk 0:01:41]}  axb6 {[%clk 0:00:51]} 22. f3 {[%clk 0:01:29]}  Bd7 {[%clk 0:00:31]} 23. Nba7 {[%clk 0:01:29]}  Ng5 {[%clk 0:00:18]} 24. Nxc8 {[%clk 0:01:26]}  Bxc8 {[%clk 0:00:12]} 25. Ne7+ {[%clk 0:01:25]}  Rxe7 {[%clk 0:00:11]} 26. Rxc8+ {[%clk 0:01:26]}  Kh7 {[%clk 0:00:11]} 27. Kf2 {[%clk 0:01:17]}  Rd7 {[%clk 0:00:10]} 28. Re1 {[%clk 0:01:11]}  Rd2+ {[%clk 0:00:07]} 29. Re2 {[%clk 0:01:11]}  Nh3+ {[%clk 0:00:05]} 30. Ke1 {[%clk 0:01:07]}  Rxe2+ {[%clk 0:00:03]} 31. Kxe2 {[%clk 0:01:07]}  Ng5 {[%clk 0:00:04]} 1-0


[Site "https://www.chess.com"]

[Event "Titled Tuesday Blitz October 11 Early 2022"]
[White "Tharushi, T H D Niklesha"]
[Black "Sovetbekova, Nurai"]
[WhiteFideId "9918264"]
[BlackFideId "13801910"]
[WhiteElo "1596"]
[BlackElo "1925"]
[Result "0-1"]
[Round "03"]
[TimeControl "180+1"]
[Date "2022.10.12"]
[WhiteClock "0:01:32"]
[BlackClock "0:01:03"]

1. e4 {[%clk 0:03:00]}  c5 {[%clk 0:02:59]} 2. Nf3 {[%clk 0:02:59]}  d6 {[%clk 0:03:00]} 3. d4 {[%clk 0:02:59]}  cxd4 {[%clk 0:03:01]} 4. Nxd4 {[%clk 0:02:59]}  Nf6 {[%clk 0:03:01]} 5. Nc3 {[%clk 0:02:59]}  a6 {[%clk 0:03:01]} 6. Bg5 {[%clk 0:02:57]}  e6 {[%clk 0:02:58]} 7. f4 {[%clk 0:02:53]}  Be7 {[%clk 0:02:59]} 8. Qf3 {[%clk 0:02:52]}  Qc7 {[%clk 0:02:58]} 9. O-O-O {[%clk 0:02:50]}  Nbd7 {[%clk 0:02:58]} 10. Bd3 {[%clk 0:02:50]}  b5 {[%clk 0:02:54]} 11. Rhe1 {[%clk 0:02:49]}  Bb7 {[%clk 0:02:53]} 12. Qg3 {[%clk 0:02:48]}  h6 {[%clk 0:02:40]} 13. Qh3 {[%clk 0:02:44]}  O-O-O {[%clk 0:02:28]} 14. Bh4 {[%clk 0:02:36]}  Nc5 {[%clk 0:02:23]} 15. f5 {[%clk 0:02:26]}  e5 {[%clk 0:02:16]} 16. Nb3 {[%clk 0:02:18]}  Nxb3+ {[%clk 0:02:05]} 17. axb3 {[%clk 0:02:18]}  Kb8 {[%clk 0:01:56]} 18. Qf3 {[%clk 0:01:54]}  Rc8 {[%clk 0:01:40]} 19. g4 {[%clk 0:01:32]}  Nxe4 {[%clk 0:01:03]} 0-1


[Site "https://www.chess.com"]

[Event "Titled Tuesday Blitz October 11 Early 2022"]
[White "Tologon tegin, Semetei"]
[Black "Blokhin, Sofia"]
[WhiteFideId "13800574"]
[BlackFideId "4508190"]
[WhiteElo "2282"]
[BlackElo "2005"]
[Result "1-0"]
[Round "03"]
[TimeControl "180+1"]
[Date "2022.10.12"]
[WhiteClock "0:00:16"]
[BlackClock "0:00:05"]

1. Nf3 {[%clk 0:02:36]}  e6 {[%clk 0:02:59]} 2. c4 {[%clk 0:02:32]}  f5 {[%clk 0:02:56]} 3. Nc3 {[%clk 0:02:28]}  Nf6 {[%clk 0:02:54]} 4. d3 {[%clk 0:02:27]}  Be7 {[%clk 0:02:52]} 5. e4 {[%clk 0:02:26]}  fxe4 {[%clk 0:02:50]} 6. dxe4 {[%clk 0:02:25]}  d6 {[%clk 0:02:41]} 7. e5 {[%clk 0:02:18]}  Nfd7 {[%clk 0:02:24]} 8. Bf4 {[%clk 0:02:10]}  O-O {[%clk 0:02:20]} 9. Bg3 {[%clk 0:02:08]}  dxe5 {[%clk 0:02:09]} 10. Nxe5 {[%clk 0:02:02]}  Nxe5 {[%clk 0:02:02]} 11. Qxd8 {[%clk 0:02:00]}  Nf3+ {[%clk 0:02:02]} 12. gxf3 {[%clk 0:01:59]}  Rxd8 {[%clk 0:02:01]} 13. Bxc7 {[%clk 0:01:52]}  Rf8 {[%clk 0:02:01]} 14. Be2 {[%clk 0:01:49]}  Nc6 {[%clk 0:01:59]} 15. O-O-O {[%clk 0:01:48]}  Bg5+ {[%clk 0:01:46]} 16. Kb1 {[%clk 0:01:45]}  Bf6 {[%clk 0:01:38]} 17. f4 {[%clk 0:01:30]}  Nd4 {[%clk 0:01:25]} 18. Bg4 {[%clk 0:01:26]}  Nf5 {[%clk 0:01:22]} 19. Ne4 {[%clk 0:01:23]}  Be7 {[%clk 0:01:10]} 20. Be5 {[%clk 0:01:18]}  b6 {[%clk 0:01:05]} 21. Rhe1 {[%clk 0:00:49]}  Ba6 {[%clk 0:00:54]} 22. b3 {[%clk 0:00:48]}  Rad8 {[%clk 0:00:53]} 23. Ng5 {[%clk 0:00:45]}  Bxg5 {[%clk 0:00:51]} 24. fxg5 {[%clk 0:00:44]}  Bb7 {[%clk 0:00:42]} 25. Bc7 {[%clk 0:00:36]}  Rc8 {[%clk 0:00:29]} 26. Be5 {[%clk 0:00:22]}  Rcd8 {[%clk 0:00:26]} 27. Bc3 {[%clk 0:00:20]}  h5 {[%clk 0:00:13]} 28. Bxh5 {[%clk 0:00:19]}  Nh4 {[%clk 0:00:11]} 29. Rxd8 {[%clk 0:00:17]}  Rxd8 {[%clk 0:00:10]} 30. Rxe6 {[%clk 0:00:18]}  Rf8 {[%clk 0:00:08]} 31. Re7 {[%clk 0:00:17]}  Rxf2 {[%clk 0:00:05]} 32. Rxg7+ {[%clk 0:00:17]}  Kf8 {[%clk 0:00:03]} 33. Rxb7 {[%clk 0:00:17]}  Rf1+ {[%clk 0:00:04]} 34. Kb2 {[%clk 0:00:17]}  Rf2+ {[%clk 0:00:05]} 35. Ka3 {[%clk 0:00:17]}  Rxh2 {[%clk 0:00:05]} 36. Bf6 {[%clk 0:00:16]}  Nf5 {[%clk 0:00:05]} 37. Rb8# {[%clk 0:00:16]} 1-0


[Site "https://www.chess.com"]

[Event "Titled Tuesday Blitz October 11 Early 2022"]
[White "Toncheva, Nadya"]
[Black "Kiseljova, Marya"]
[WhiteFideId "2924056"]
[BlackFideId "4155009"]
[WhiteElo "2101"]
[BlackElo "1931"]
[Result "1-0"]
[Round "03"]
[TimeControl "180+1"]
[Date "2022.10.12"]
[WhiteClock "0:00:12"]
[BlackClock "0:00:11"]

1. e4 {[%clk 0:03:00]}  c5 {[%clk 0:02:59]} 2. Nf3 {[%clk 0:03:01]}  Nc6 {[%clk 0:03:00]} 3. Bb5 {[%clk 0:02:59]}  g6 {[%clk 0:03:00]} 4. c3 {[%clk 0:02:50]}  Bg7 {[%clk 0:02:57]} 5. d4 {[%clk 0:02:50]}  cxd4 {[%clk 0:02:49]} 6. cxd4 {[%clk 0:02:51]}  Nf6 {[%clk 0:02:37]} 7. Nc3 {[%clk 0:02:47]}  O-O {[%clk 0:02:33]} 8. d5 {[%clk 0:02:34]}  Nb8 {[%clk 0:02:06]} 9. O-O {[%clk 0:02:28]}  d6 {[%clk 0:02:04]} 10. h3 {[%clk 0:02:23]}  a6 {[%clk 0:02:04]} 11. Bd3 {[%clk 0:02:18]}  Nbd7 {[%clk 0:02:02]} 12. Be3 {[%clk 0:02:16]}  b5 {[%clk 0:01:50]} 13. a4 {[%clk 0:02:14]}  b4 {[%clk 0:01:44]} 14. Nb1 {[%clk 0:02:14]}  a5 {[%clk 0:01:44]} 15. Qe2 {[%clk 0:02:05]}  Nc5 {[%clk 0:01:40]} 16. Bxc5 {[%clk 0:02:00]}  dxc5 {[%clk 0:01:41]} 17. Nbd2 {[%clk 0:02:00]}  Nd7 {[%clk 0:01:36]} 18. Rac1 {[%clk 0:01:58]}  Bxb2 {[%clk 0:01:34]} 19. Rc2 {[%clk 0:01:59]}  Bc3 {[%clk 0:01:28]} 20. Nb3 {[%clk 0:01:50]}  Qb6 {[%clk 0:01:22]} 21. h4 {[%clk 0:01:48]}  Ba6 {[%clk 0:01:21]} 22. Bxa6 {[%clk 0:01:16]}  Qxa6 {[%clk 0:01:22]} 23. Qe3 {[%clk 0:01:13]}  Rfc8 {[%clk 0:01:16]} 24. e5 {[%clk 0:00:58]}  Qc4 {[%clk 0:01:11]} 25. e6 {[%clk 0:00:36]}  Qxb3 {[%clk 0:00:45]} 26. exd7 {[%clk 0:00:36]}  Rd8 {[%clk 0:00:30]} 27. Rfc1 {[%clk 0:00:20]}  Rxd7 {[%clk 0:00:25]} 28. Qxc5 {[%clk 0:00:20]}  Qxd5 {[%clk 0:00:24]} 29. Qe3 {[%clk 0:00:19]}  Rad8 {[%clk 0:00:21]} 30. Ng5 {[%clk 0:00:16]}  h6 {[%clk 0:00:16]} 31. Ne4 {[%clk 0:00:15]}  Qd4 {[%clk 0:00:15]} 32. Qf3 {[%clk 0:00:13]}  Qg7 {[%clk 0:00:13]} 33. h5 {[%clk 0:00:13]}  g5 {[%clk 0:00:13]} 34. Nxc3 {[%clk 0:00:13]}  bxc3 {[%clk 0:00:13]} 35. Rxc3 {[%clk 0:00:14]}  Rd4 {[%clk 0:00:12]} 36. Rc8 {[%clk 0:00:11]}  Rxc8 {[%clk 0:00:11]} 37. Rxc8+ {[%clk 0:00:12]}  Kh7 {[%clk 0:00:11]} 38. Qf5+ {[%clk 0:00:12]}  Qg6 {[%clk 0:00:10]} 39. hxg6+ {[%clk 0:00:11]}  fxg6 {[%clk 0:00:11]} 40. Qf7# {[%clk 0:00:12]} 1-0


[Site "https://www.chess.com"]

[Event "Titled Tuesday Blitz October 11 Early 2022"]
[White "Tsaruk, Maksim"]
[Black "Ronka, Erik"]
[WhiteFideId "13511173"]
[BlackFideId "505080"]
[WhiteElo "2273"]
[BlackElo "2264"]
[Result "1-0"]
[Round "03"]
[TimeControl "180+1"]
[Date "2022.10.12"]
[WhiteClock "0:00:03"]
[BlackClock "0:00:01"]

1. d4 {[%clk 0:02:59]}  d5 {[%clk 0:02:54]} 2. Nf3 {[%clk 0:02:59]}  Nf6 {[%clk 0:02:54]} 3. c4 {[%clk 0:03:00]}  e6 {[%clk 0:02:54]} 4. g3 {[%clk 0:03:00]}  dxc4 {[%clk 0:02:54]} 5. Bg2 {[%clk 0:03:00]}  a6 {[%clk 0:02:54]} 6. Ne5 {[%clk 0:02:50]}  Bb4+ {[%clk 0:02:53]} 7. Nc3 {[%clk 0:02:49]}  Nd5 {[%clk 0:02:53]} 8. Bd2 {[%clk 0:02:39]}  Nb6 {[%clk 0:02:50]} 9. O-O {[%clk 0:02:38]}  O-O {[%clk 0:02:48]} 10. Ne4 {[%clk 0:02:28]}  a5 {[%clk 0:02:46]} 11. a3 {[%clk 0:02:27]}  Bxd2 {[%clk 0:02:10]} 12. Qxd2 {[%clk 0:02:28]}  N8d7 {[%clk 0:02:09]} 13. Nxd7 {[%clk 0:02:04]}  Nxd7 {[%clk 0:01:37]} 14. Rac1 {[%clk 0:02:01]}  Nb6 {[%clk 0:01:35]} 15. Nc5 {[%clk 0:02:01]}  c6 {[%clk 0:01:34]} 16. Qf4 {[%clk 0:01:54]}  Re8 {[%clk 0:01:27]} 17. Rfd1 {[%clk 0:01:52]}  Qf6 {[%clk 0:01:19]} 18. Qxf6 {[%clk 0:01:51]}  gxf6 {[%clk 0:01:18]} 19. e3 {[%clk 0:01:24]}  Rb8 {[%clk 0:01:09]} 20. Bf1 {[%clk 0:01:15]}  Kf8 {[%clk 0:01:05]} 21. h4 {[%clk 0:01:11]}  Ke7 {[%clk 0:01:05]} 22. Bxc4 {[%clk 0:01:05]}  Nxc4 {[%clk 0:01:06]} 23. Rxc4 {[%clk 0:01:06]}  b6 {[%clk 0:00:56]} 24. Nd3 {[%clk 0:01:06]}  Bb7 {[%clk 0:00:55]} 25. Nf4 {[%clk 0:01:01]}  Rec8 {[%clk 0:00:54]} 26. Rdc1 {[%clk 0:01:01]}  c5 {[%clk 0:00:30]} 27. dxc5 {[%clk 0:00:58]}  Ba6 {[%clk 0:00:30]} 28. R4c2 {[%clk 0:00:44]}  bxc5 {[%clk 0:00:30]} 29. Kh2 {[%clk 0:00:29]}  c4 {[%clk 0:00:27]} 30. Rd2 {[%clk 0:00:22]}  Rb3 {[%clk 0:00:26]} 31. Ne2 {[%clk 0:00:20]}  Rcb8 {[%clk 0:00:19]} 32. Rcc2 {[%clk 0:00:20]}  Rd8 {[%clk 0:00:14]} 33. Nd4 {[%clk 0:00:19]}  Rb6 {[%clk 0:00:12]} 34. g4 {[%clk 0:00:10]}  Kf8 {[%clk 0:00:11]} 35. Kg3 {[%clk 0:00:10]}  Ke7 {[%clk 0:00:12]} 36. f3 {[%clk 0:00:08]}  Rdb8 {[%clk 0:00:12]} 37. h5 {[%clk 0:00:05]}  Kf8 {[%clk 0:00:12]} 38. Rf2 {[%clk 0:00:04]}  h6 {[%clk 0:00:11]} 39. Rfd2 {[%clk 0:00:05]}  Ke7 {[%clk 0:00:11]} 40. Ne2 {[%clk 0:00:05]}  Rd8 {[%clk 0:00:08]} 41. Rxd8 {[%clk 0:00:05]}  Kxd8 {[%clk 0:00:09]} 42. Rd2+ {[%clk 0:00:06]}  Ke7 {[%clk 0:00:09]} 43. Nc3 {[%clk 0:00:07]}  Rb8 {[%clk 0:00:06]} 44. Kf2 {[%clk 0:00:06]}  Bb7 {[%clk 0:00:05]} 45. e4 {[%clk 0:00:06]}  Bc6 {[%clk 0:00:05]} 46. Ke3 {[%clk 0:00:07]}  Rg8 {[%clk 0:00:05]} 47. Ne2 {[%clk 0:00:06]}  Rb8 {[%clk 0:00:04]} 48. Rc2 {[%clk 0:00:06]}  Bd7 {[%clk 0:00:04]} 49. Nd4 {[%clk 0:00:06]}  Be8 {[%clk 0:00:01]} 50. Kd2 {[%clk 0:00:05]}  a4 {[%clk 0:00:01]} 51. Kc3 {[%clk 0:00:05]}  Rc8 {[%clk 0:00:01]} 52. Rd2 {[%clk 0:00:03]}  Rb8 {[%clk 0:00:01]} 53. Rc2 {[%clk 0:00:02]}  Rc8 {[%clk 0:00:01]} 54. Kd2 {[%clk 0:00:03]}  Kf8 {[%clk 0:00:01]} 55. Ne2 {[%clk 0:00:03]} 1-0


[Site "https://www.chess.com"]